fUSD/lending_fUSD_20250519
["ID","MTS","AMOUNT","RATE_DAILY","PERIOD"]
[361577491,1747621847531,-201.78355378,0.00013735,2]
[361577492,1747621847540,-150.0,0.00013739,2]
[361577493,1747621847549,-150.0,0.00013743,2]
[361577494,1747621847558,-200.0,0.00013752,2]
[361577495,1747621847569,-353.98900731,0.00013754,2]
[361577496,1747621847582,-150.0,0.00013758,2]
[361577497,1747621847591,-150.0,0.00013765,2]
[361577498,1747621847600,-2029.80505838,0.00013766,2]
[361577499,1747621847610,-900.35,0.00013796,2]
[361577500,1747621847621,-1058.21625796,0.00013796,2]
[361577501,1747621847631,-182.67961877,0.00013798,2]
[361577502,1747621847642,-158.47235457,0.00013799,2]
[361577503,1747621847657,-2029.80505838,0.00013799,2]
[361577504,1747621847670,-4071.67,0.000138,2]
[361577505,1747621847680,-1734.0,0.000138,2]
[361577506,1747621847692,-150.0,0.00013805,2]
[361577507,1747621847703,-611.78454536,0.00013806,2]
[361577508,1747621847715,-151.0,0.00013807,2]
[361577509,1747621847726,-151.0,0.00013807,2]
[361577510,1747621847737,-900.35,0.00013807,2]
[361577511,1747621847747,-900.35,0.00013807,2]
[361577512,1747621847758,-900.35,0.00013807,2]
[361577513,1747621847768,-900.35,0.00013807,2]
[361577514,1747621847778,-500.0,0.00013807,2]
[361577515,1747621847788,-500.0,0.00013807,2]
[361577516,1747621847797,-500.0,0.00013807,2]
[361577517,1747621847807,-500.0,0.00013807,2]
[361577518,1747621847818,-404.18,0.00013807,2]
[361577519,1747621847828,-568.0,0.00013808,2]
[361577520,1747621847838,-151.0,0.00013808,2]
[361577521,1747621847848,-151.0,0.00013808,2]
[361577522,1747621847859,-3993.515383,0.00013808,2]
[361577523,1747621847868,-1365.147528,0.00013808,2]
[361577524,1747621847879,-1136.143603,0.00013808,2]
[361577525,1747621847890,-400.0,0.00013808,2]
[361577526,1747621847900,-400.0,0.00013808,2]
[361577527,1747621847910,-400.0,0.00013808,2]
[361577528,1747621847919,-549.28,0.00013808,2]
[361577529,1747621847929,-400.0,0.00013808,2]
[361577530,1747621847939,-400.0,0.00013808,2]
[361577531,1747621847949,-400.0,0.00013808,2]
[361577532,1747621847959,-400.0,0.00013808,2]
[361577533,1747621847969,-400.0,0.00013808,2]
[361577534,1747621847979,-400.0,0.00013808,2]
[361577535,1747621847989,-400.0,0.00013808,2]
[361577536,1747621847999,-400.0,0.00013808,2]
[361577537,1747621848009,-678.4,0.00013808,2]
[361577538,1747621848019,-400.0,0.00013808,2]
[361577539,1747621848030,-400.0,0.00013808,2]
[361577540,1747621848040,-421.04,0.00013808,2]
[361577541,1747621848050,-400.0,0.00013808,2]
[361577542,1747621848060,-472.32,0.00013808,2]
[361577543,1747621848072,-400.0,0.00013808,2]
[361577544,1747621848082,-401.12069269,0.00013808,2]
[361577545,1747621848092,-400.0,0.00013808,2]
[361577546,1747621848102,-400.0,0.00013808,2]
[361577547,1747621848112,-480.57,0.00013808,2]
[361577548,1747621848122,-614.33,0.00013808,2]
[361577549,1747621848132,-400.0,0.00013808,2]
[361577550,1747621848143,-400.0,0.00013808,2]
[361577551,1747621848153,-402.38682399,0.00013808,2]
[361577552,1747621848163,-400.0,0.00013808,2]
[361577553,1747621848172,-400.0,0.00013808,2]
[361577554,1747621848183,-400.0,0.00013808,2]
[361577555,1747621848192,-400.0,0.00013808,2]
[361577556,1747621848202,-524.34,0.00013808,2]
[361577557,1747621848213,-400.0,0.00013808,2]
[361577558,1747621848223,-400.0,0.00013808,2]
[361577559,1747621848233,-400.0,0.00013808,2]
[361577560,1747621848243,-400.0,0.00013808,2]
[361577561,1747621848252,-400.0,0.00013808,2]
[361577562,1747621848262,-522.05,0.00013808,2]
[361577563,1747621848272,-404.50401808,0.00013808,2]
[361577564,1747621848281,-400.0,0.00013808,2]
[361577565,1747621848291,-410.64344174,0.00013808,2]
[361577566,1747621848301,-415.01,0.00013808,2]
[361577567,1747621848310,-544.51,0.00013808,2]
[361577568,1747621848320,-908.7,0.00013808,2]
[361577569,1747621848330,-400.0,0.00013808,2]
[361577570,1747621848340,-403.9152486,0.00013808,2]
[361577571,1747621848350,-400.0,0.00013808,2]
[361577572,1747621848359,-400.0,0.00013808,2]
[361577573,1747621848369,-429.5,0.00013808,2]
[361577574,1747621848379,-250.0,0.00013808,2]
[361577575,1747621848389,-400.0,0.00013808,2]
[361577576,1747621848399,-405.15820895,0.00013808,2]
[361577577,1747621848409,-400.0,0.00013808,2]
[361577578,1747621848418,-400.0,0.00013808,2]
[361577579,1747621848428,-400.0,0.00013808,2]
[361577580,1747621848438,-400.0,0.00013808,2]
[361577581,1747621848448,-151.0,0.00013808,2]
[361577582,1747621848457,-631.13,0.00013808,2]
[361577583,1747621848466,-177.69627494,0.00013808,2]
[361577584,1747621848476,-400.0,0.00013808,2]
[361577585,1747621848486,-400.0,0.00013808,2]
[361577586,1747621848496,-400.0,0.00013808,2]
[361577587,1747621848505,-400.0,0.00013808,2]
[361577588,1747621848515,-400.0,0.00013808,2]
[361577589,1747621848525,-400.0,0.00013808,2]
[361577590,1747621848535,-400.0,0.00013808,2]
[361577591,1747621848545,-400.0,0.00013808,2]
[361577592,1747621848555,-445.32,0.00013808,2]
[361577593,1747621848564,-400.0,0.00013808,2]
[361577594,1747621848575,-400.0,0.00013808,2]
[361577595,1747621848586,-400.0,0.00013808,2]
[361577596,1747621848596,-151.0,0.00013808,2]
[361577597,1747621848606,-400.0,0.00013808,2]
[361577598,1747621848615,-400.0,0.00013808,2]
[361577599,1747621848625,-151.0,0.00013808,2]
[361577600,1747621848635,-512.5876641,0.00013808,2]
[361577601,1747621848644,-400.0,0.00013808,2]
[361577602,1747621848656,-614.38,0.00013808,2]
[361577603,1747621848665,-400.0,0.00013808,2]
[361577604,1747621848675,-507.99234207,0.00013808,2]
[361577605,1747621848684,-400.0,0.00013808,2]
[361577606,1747621848694,-406.59087404,0.00013808,2]
[361577607,1747621848703,-400.0,0.00013808,2]
[361577608,1747621848713,-400.0,0.00013808,2]
[361577609,1747621848722,-400.0,0.00013808,2]
[361577610,1747621848733,-182.3073557,0.00013808,2]
[361577611,1747621848742,-152.428065,0.00013808,2]
[361577612,1747621848752,-151.380315,0.00013808,2]
[361577613,1747621848761,-543.81,0.00013808,2]
[361577614,1747621848771,-400.0,0.00013808,2]
[361577615,1747621848780,-400.0,0.00013808,2]
[361577616,1747621848790,-296.4,0.00013808,2]
[361577617,1747621848799,-400.0,0.00013808,2]
[361577618,1747621848812,-400.0,0.00013808,2]
[361577619,1747621848824,-400.0,0.00013808,2]
[361577620,1747621848833,-400.0,0.00013808,2]
[361577621,1747621848843,-404.80928678,0.00013808,2]
[361577622,1747621848852,-152.393508,0.00013808,2]
[361577623,1747621848862,-400.0,0.00013808,2]
[361577624,1747621848871,-400.0,0.00013808,2]
[361577625,1747621848881,-307.702771,0.00013808,2]
[361577626,1747621848890,-409.15142023,0.00013808,2]
[361577627,1747621848900,-307.702771,0.00013808,2]
[361577628,1747621848910,-661.73,0.00013808,2]
[361577629,1747621848919,-518.61,0.00013808,2]
[361577630,1747621848929,-400.0,0.00013808,2]
[361577631,1747621848939,-405.35660533,0.00013808,2]
[361577632,1747621848948,-408.25090729,0.00013808,2]
[361577633,1747621848959,-400.0,0.00013808,2]
[361577634,1747621848969,-471.38,0.00013808,2]
[361577635,1747621848979,-484.77,0.00013808,2]
[361577636,1747621848990,-400.0,0.00013808,2]
[361577637,1747621849001,-400.0,0.00013808,2]
[361577638,1747621849011,-1333.7,0.00013808,2]
[361577639,1747621849021,-400.0,0.00013808,2]
[361577640,1747621849031,-400.0,0.00013808,2]
[361577641,1747621849041,-151.0,0.00013808,2]
[361577642,1747621849050,-400.0,0.00013808,2]
[361577643,1747621849060,-400.0,0.00013808,2]
[361577644,1747621849071,-400.0,0.00013808,2]
[361577645,1747621849080,-151.0,0.00013808,2]
[361577646,1747621849090,-757.38,0.00013808,2]
[361577647,1747621849099,-400.0,0.00013808,2]
[361577648,1747621849109,-400.0,0.00013808,2]
[361577649,1747621849119,-400.0,0.00013808,2]
[361577650,1747621849128,-425.88,0.00013808,2]
[361577651,1747621849138,-400.0,0.00013808,2]
[361577652,1747621849147,-400.0,0.00013808,2]
[361577653,1747621849157,-151.0,0.00013808,2]
[361577654,1747621849166,-400.0,0.00013808,2]
[361577655,1747621849176,-400.0,0.00013808,2]
[361577656,1747621849185,-154.512649,0.00013808,2]
[361577657,1747621849195,-406.65815389,0.00013808,2]
[361577658,1747621849204,-400.0,0.00013808,2]
[361577659,1747621849213,-416.1082134,0.00013808,2]
[361577660,1747621849223,-400.0,0.00013808,2]
[361577661,1747621849232,-269.729367,0.00013808,2]
[361577662,1747621849242,-400.0,0.00013808,2]
[361577663,1747621849251,-406.0307666,0.00013808,2]
[361577664,1747621849260,-400.0,0.00013808,2]
[361577665,1747621849269,-400.0,0.00013808,2]
[361577666,1747621849370,-400.0,0.00013808,2]
[361577667,1747621849380,-549.87,0.00013808,2]
[361577668,1747621849389,-1028.9,0.00013808,2]
[361577669,1747621849397,-400.0,0.00013808,2]
[361577670,1747621849406,-486.16279226,0.00013808,2]
[361577671,1747621849415,-400.0,0.00013808,2]
[361577672,1747621849424,-400.0,0.00013808,2]
[361577673,1747621849434,-400.0,0.00013808,2]
[361577674,1747621849444,-400.0,0.00013808,2]
[361577675,1747621849453,-419.55705749,0.00013808,2]
[361577676,1747621849462,-400.0,0.00013808,2]
[361577677,1747621849471,-597.83,0.00013808,2]
[361577678,1747621849479,-400.0,0.00013808,2]
[361577679,1747621849488,-400.0,0.00013808,2]
[361577680,1747621849497,-400.0,0.00013808,2]
[361577681,1747621849507,-151.0,0.00013808,2]
[361577682,1747621849516,-509.12401241,0.00013808,2]
[361577683,1747621849525,-374.97823264,0.00013808,2]
[361577684,1747621849535,-151.0,0.00013808,2]
[361577685,1747621849544,-400.0,0.00013808,2]
[361577686,1747621849553,-400.0,0.00013808,2]
[361577687,1747621849562,-400.0,0.00013808,2]
[361577688,1747621849572,-400.0,0.00013808,2]
[361577689,1747621849585,-400.0,0.00013808,2]
[361577690,1747621849594,-420.00588728,0.00013808,2]
[361577691,1747621849603,-151.0,0.00013808,2]
[361577692,1747621849612,-199.54245846,0.00013808,2]
[361577693,1747621849621,-400.0,0.00013808,2]
[361577694,1747621849632,-439.49923491,0.00013808,2]
[361577695,1747621849642,-693.57,0.00013808,2]
[361577696,1747621849651,-459.96808403,0.00013808,2]
[361577697,1747621849661,-400.0,0.00013808,2]
[361577698,1747621849670,-400.0,0.00013808,2]
[361577699,1747621849680,-167.73,0.00013808,2]
[361577700,1747621849689,-400.0,0.00013808,2]
[361577701,1747621849698,-400.0,0.00013808,2]
[361577702,1747621849708,-821.82,0.00013808,2]
[361577703,1747621849717,-151.0,0.00013808,2]
[361577704,1747621849727,-400.0,0.00013808,2]
[361577705,1747621849736,-400.0,0.00013808,2]
[361577706,1747621849745,-534.73,0.00013808,2]
[361577707,1747621849755,-1298.52,0.00013808,2]
[361577708,1747621849764,-400.0,0.00013808,2]
[361577709,1747621849773,-400.0,0.00013808,2]
[361577710,1747621849781,-400.0,0.00013808,2]
[361577711,1747621849790,-400.0,0.00013808,2]
[361577712,1747621849799,-400.0,0.00013808,2]
[361577713,1747621849808,-164.81554,0.00013808,2]
[361577714,1747621849818,-510.47468195,0.00013808,2]
[361577715,1747621849827,-400.0,0.00013808,2]
[361577716,1747621849836,-400.0,0.00013808,2]
[361577717,1747621849846,-164.81554,0.00013808,2]
[361577718,1747621849857,-994.84,0.00013808,2]
[361577719,1747621849868,-1157.33,0.00013808,2]
[361577720,1747621849878,-400.0,0.00013808,2]
[361577721,1747621849888,-499.72,0.00013808,2]
[361577722,1747621849898,-767.51,0.00013808,2]
[361577723,1747621849907,-400.0,0.00013808,2]
[361577724,1747621849918,-400.0,0.00013808,2]
[361577725,1747621849927,-921.31,0.00013808,2]
[361577726,1747621849937,-400.0,0.00013808,2]
[361577727,1747621849946,-400.0,0.00013808,2]
[361577728,1747621849955,-400.0,0.00013808,2]
[361577729,1747621849965,-859.14,0.00013808,2]
[361577730,1747621849974,-509.06203749,0.00013808,2]
[361577731,1747621849984,-400.0,0.00013808,2]
[361577732,1747621849993,-400.0,0.00013808,2]
[361577733,1747621850003,-400.0,0.00013808,2]
[361577734,1747621850012,-558.8,0.00013808,2]
[361577735,1747621850021,-400.0,0.00013808,2]
[361577736,1747621850030,-877.9,0.00013808,2]
[361577737,1747621850040,-400.0,0.00013808,2]
[361577738,1747621850050,-262.1,0.00013808,2]
[361577739,1747621850059,-478.82,0.00013808,2]
[361577740,1747621850069,-400.0,0.00013808,2]
[361577741,1747621850078,-507.52,0.00013808,2]
[361577742,1747621850088,-633.6,0.00013808,2]
[361577743,1747621850098,-454.02144306,0.00013808,2]
[361577744,1747621850108,-400.0,0.00013808,2]
[361577745,1747621850117,-400.0,0.00013808,2]
[361577746,1747621850127,-459.62,0.00013808,2]
[361577747,1747621850137,-400.0,0.00013808,2]
[361577748,1747621850146,-348.908454,0.00013808,2]
[361577749,1747621850155,-632.49,0.00013808,2]
[361577750,1747621850165,-485.69,0.00013808,2]
[361577751,1747621850174,-400.0,0.00013808,2]
[361577752,1747621850184,-400.0,0.00013808,2]
[361577753,1747621850193,-1010.59104096,0.00013808,2]
[361577754,1747621850203,-348.908454,0.00013808,2]
[361577755,1747621850212,-400.0,0.00013808,2]
[361577756,1747621850221,-520.76,0.00013808,2]
[361577757,1747621850230,-151.0,0.00013808,2]
[361577758,1747621850240,-652.72,0.00013808,2]
[361577759,1747621850248,-400.0,0.00013808,2]
[361577760,1747621850257,-719.14,0.00013808,2]
[361577761,1747621850267,-403.36286513,0.00013808,2]
[361577762,1747621850276,-459.14,0.00013808,2]
[361577763,1747621850286,-508.65,0.00013808,2]
[361577764,1747621850295,-400.0,0.00013808,2]
[361577765,1747621850304,-151.0,0.00013808,2]
[361577766,1747621850313,-152.452711,0.00013808,2]
[361577767,1747621850322,-865.6,0.00013808,2]
[361577768,1747621850332,-400.0,0.00013808,2]
[361577769,1747621850341,-400.0,0.00013808,2]
[361577770,1747621850350,-466.39,0.00013808,2]
[361577771,1747621850359,-400.0,0.00013808,2]
[361577772,1747621850368,-151.0,0.00013808,2]
[361577773,1747621850378,-151.0,0.00013808,2]
[361577774,1747621850387,-418.29,0.00013808,2]
[361577775,1747621850398,-400.0,0.00013808,2]
[361577776,1747621850407,-405.33609223,0.00013808,2]
[361577777,1747621850416,-583.79,0.00013808,2]
[361577778,1747621850426,-400.0,0.00013808,2]
[361577779,1747621850436,-400.0,0.00013808,2]
[361577780,1747621850446,-809.57,0.00013808,2]
[361577781,1747621850456,-633.12,0.00013808,2]
[361577782,1747621850465,-400.0,0.00013808,2]
[361577783,1747621850474,-608.86,0.00013808,2]
[361577784,1747621850484,-400.0,0.00013808,2]
[361577785,1747621850495,-400.0,0.00013808,2]
[361577786,1747621850505,-875.48,0.00013808,2]
[361577787,1747621850516,-428.79,0.00013808,2]
[361577788,1747621850526,-884.22,0.00013808,2]
[361577789,1747621850535,-400.0,0.00013808,2]
[361577790,1747621850545,-510.82,0.00013808,2]
[361577791,1747621850554,-400.0,0.00013808,2]
[361577792,1747621850563,-1376.72,0.00013808,2]
[361577793,1747621850572,-434.0,0.00013808,2]
[361577794,1747621850585,-252.08758045,0.00013808,2]
[361577795,1747621850594,-1139.96,0.00013808,2]
[361577796,1747621850603,-400.0,0.00013808,2]
[361577797,1747621850612,-400.0,0.00013808,2]
[361577798,1747621850621,-400.0,0.00013808,2]
[361577799,1747621850633,-623.37,0.00013808,2]
[361577800,1747621850642,-400.0,0.00013808,2]
[361577801,1747621850651,-151.0,0.00013808,2]
[361577802,1747621850660,-496.69,0.00013808,2]
[361577803,1747621850670,-151.658053,0.00013808,2]
[361577804,1747621850679,-410.98,0.00013808,2]
[361577805,1747621850688,-1052.56,0.00013808,2]
[361577806,1747621850697,-400.0,0.00013808,2]
[361577807,1747621850707,-1129.85,0.00013808,2]
[361577808,1747621850715,-400.0,0.00013808,2]
[361577809,1747621850724,-151.0,0.00013808,2]
[361577810,1747621850733,-544.32,0.00013808,2]
[361577811,1747621850742,-400.0,0.00013808,2]
[361577812,1747621850751,-400.0,0.00013808,2]
[361577813,1747621850761,-476.45,0.00013808,2]
[361577814,1747621850770,-404.55882592,0.00013808,2]
[361577815,1747621850779,-151.0,0.00013808,2]
[361577816,1747621850788,-772.33,0.00013808,2]
[361577817,1747621850797,-151.0,0.00013808,2]
[361577818,1747621850806,-763.52,0.00013808,2]
[361577819,1747621850815,-614.55,0.00013808,2]
[361577820,1747621850826,-404.19321561,0.00013808,2]
[361577821,1747621850835,-400.0,0.00013808,2]
[361577822,1747621850844,-271.202948,0.00013808,2]
[361577823,1747621850854,-400.0,0.00013808,2]
[361577824,1747621850863,-487.69,0.00013808,2]
[361577825,1747621850872,-400.0,0.00013808,2]
[361577826,1747621850881,-400.0,0.00013808,2]
[361577827,1747621850890,-1455.95,0.00013808,2]
[361577828,1747621850899,-538.7,0.00013808,2]
[361577829,1747621850908,-422.96,0.00013808,2]
[361577830,1747621850918,-301.82,0.00013808,2]
[361577831,1747621850927,-400.0,0.00013808,2]
[361577832,1747621850936,-487.31,0.00013808,2]
[361577833,1747621850945,-927.65,0.00013808,2]
[361577834,1747621850954,-151.0,0.00013808,2]
[361577835,1747621850963,-688.09,0.00013808,2]
[361577836,1747621850971,-466.38,0.00013808,2]
[361577837,1747621850981,-400.0,0.00013808,2]
[361577838,1747621850990,-152.70788,0.00013808,2]
[361577839,1747621850999,-530.76552719,0.00013808,2]
[361577840,1747621851008,-400.0,0.00013808,2]
[361577841,1747621851017,-151.0,0.00013808,2]
[361577842,1747621851026,-400.0,0.00013808,2]
[361577843,1747621851035,-400.0,0.00013808,2]
[361577844,1747621851045,-1126.32,0.00013808,2]
[361577845,1747621851055,-680.64,0.00013808,2]
[361577846,1747621851065,-512.77,0.00013808,2]
[361577847,1747621851074,-400.0,0.00013808,2]
[361577848,1747621851083,-1198.59,0.00013808,2]
[361577849,1747621851092,-737.43,0.00013808,2]
[361577850,1747621851101,-151.357546,0.00013808,2]
[361577851,1747621851111,-400.0,0.00013808,2]
[361577852,1747621851121,-400.0,0.00013808,2]
[361577853,1747621851131,-151.0,0.00013808,2]
[361577854,1747621851140,-445.57,0.00013808,2]
[361577855,1747621851149,-548.95,0.00013808,2]
[361577856,1747621851159,-541.34,0.00013808,2]
[361577857,1747621851168,-714.06,0.00013808,2]
[361577858,1747621851177,-400.0,0.00013808,2]
[361577859,1747621851186,-1241.3,0.00013808,2]
[361577860,1747621851195,-950.65,0.00013808,2]
[361577861,1747621851204,-517.9,0.00013808,2]
[361577862,1747621851214,-151.0,0.00013808,2]
[361577863,1747621851223,-600.91,0.00013808,2]
[361577864,1747621851233,-984.52,0.00013808,2]
[361577865,1747621851242,-400.0,0.00013808,2]
[361577866,1747621851251,-400.43569904,0.00013808,2]
[361577867,1747621851261,-634.91,0.00013808,2]
[361577868,1747621851270,-400.0,0.00013808,2]
[361577869,1747621851279,-1247.64,0.00013808,2]
[361577870,1747621851289,-400.0,0.00013808,2]
[361577871,1747621851298,-1356.91,0.00013808,2]
[361577872,1747621851307,-580.47,0.00013808,2]
[361577873,1747621851316,-1014.42,0.00013808,2]
[361577874,1747621851326,-400.0,0.00013808,2]
[361577875,1747621851335,-406.61584979,0.00013808,2]
[361577876,1747621851344,-151.0,0.00013808,2]
[361577877,1747621851353,-400.0,0.00013808,2]
[361577878,1747621851363,-674.82,0.00013808,2]
[361577879,1747621851372,-400.0,0.00013808,2]
[361577880,1747621851381,-600.32,0.00013808,2]
[361577881,1747621851391,-1009.47,0.00013808,2]
[361577882,1747621851400,-844.42,0.00013808,2]
[361577883,1747621851409,-400.0,0.00013808,2]
[361577884,1747621851418,-462.25791582,0.00013808,2]
[361577885,1747621851428,-400.0,0.00013808,2]
[361577886,1747621851437,-2145.08,0.00013808,2]
[361577887,1747621851446,-400.0,0.00013808,2]
[361577888,1747621851455,-1349.8,0.00013808,2]
[361577889,1747621851464,-904.78,0.00013808,2]
[361577890,1747621851473,-400.0,0.00013808,2]
[361577891,1747621851483,-569.37,0.00013808,2]
[361577892,1747621851492,-400.0,0.00013808,2]
[361577893,1747621851502,-469.04,0.00013808,2]
[361577894,1747621851511,-409.32393217,0.00013808,2]
[361577895,1747621851520,-400.0,0.00013808,2]
[361577896,1747621851529,-400.0,0.00013808,2]
[361577897,1747621851538,-400.0,0.00013808,2]
[361577898,1747621851547,-400.0,0.00013808,2]
[361577899,1747621851556,-400.0,0.00013808,2]
[361577900,1747621851565,-442.86,0.00013808,2]
[361577901,1747621851575,-400.0,0.00013808,2]
[361577902,1747621851588,-400.0,0.00013808,2]
[361577903,1747621851598,-400.0,0.00013808,2]
[361577904,1747621851607,-884.41,0.00013808,2]
[361577905,1747621851618,-487.93,0.00013808,2]
[361577906,1747621851629,-509.22,0.00013808,2]
[361577907,1747621851638,-400.0,0.00013808,2]
[361577908,1747621851647,-456.57150316,0.00013808,2]
[361577909,1747621851659,-400.0,0.00013808,2]
[361577910,1747621851668,-400.0,0.00013808,2]
[361577911,1747621851677,-400.0,0.00013808,2]
[361577912,1747621851686,-1000.9,0.00013808,2]
[361577913,1747621851695,-525.15,0.00013808,2]
[361577914,1747621851704,-641.32,0.00013808,2]
[361577915,1747621851712,-404.33802721,0.00013808,2]
[361577916,1747621851721,-508.32,0.00013808,2]
[361577917,1747621851730,-400.0,0.00013808,2]
[361577918,1747621851739,-210.120325,0.00013808,2]
[361577919,1747621851748,-400.0,0.00013808,2]
[361577920,1747621851757,-527.35,0.00013808,2]
[361577921,1747621851766,-400.0,0.00013808,2]
[361577922,1747621851776,-802.18,0.00013808,2]
[361577923,1747621851785,-210.120325,0.00013808,2]
[361577924,1747621851794,-400.0,0.00013808,2]
[361577925,1747621851803,-535.72,0.00013808,2]
[361577926,1747621851812,-1136.65,0.00013808,2]
[361577927,1747621851822,-337.60972,0.00013808,2]
[361577928,1747621851831,-1743.83,0.00013808,2]
[361577929,1747621851840,-1025.73,0.00013808,2]
[361577930,1747621851849,-484.52,0.00013808,2]
[361577931,1747621851858,-151.0,0.00013808,2]
[361577932,1747621851867,-337.60972,0.00013808,2]
[361577933,1747621851878,-400.0,0.00013808,2]
[361577934,1747621851887,-151.0,0.00013808,2]
[361577935,1747621851896,-985.17,0.00013808,2]
[361577936,1747621851905,-400.0,0.00013808,2]
[361577937,1747621851915,-151.0,0.00013808,2]
[361577938,1747621851925,-400.0,0.00013808,2]
[361577939,1747621851934,-412.97,0.00013808,2]
[361577940,1747621851944,-868.89,0.00013808,2]
[361577941,1747621851953,-400.0,0.00013808,2]
[361577942,1747621851962,-400.0,0.00013808,2]
[361577943,1747621851971,-400.0,0.00013808,2]
[361577944,1747621851980,-400.0,0.00013808,2]
[361577945,1747621851989,-151.0,0.00013808,2]
[361577946,1747621851997,-400.0,0.00013808,2]
[361577947,1747621852006,-400.0,0.00013808,2]
[361577948,1747621852016,-400.0,0.00013808,2]
[361577949,1747621852025,-549.04,0.00013808,2]
[361577950,1747621852035,-400.0,0.00013808,2]
[361577951,1747621852046,-400.0,0.00013808,2]
[361577952,1747621852055,-861.44,0.00013808,2]
[361577953,1747621852065,-1153.21,0.00013808,2]
[361577954,1747621852075,-714.94,0.00013808,2]
[361577955,1747621852084,-400.0,0.00013808,2]
[361577956,1747621852094,-400.0,0.00013808,2]
[361577957,1747621852103,-160.46,0.00013808,2]
[361577958,1747621852112,-400.0,0.00013808,2]
[361577959,1747621852121,-482.04,0.00013808,2]
[361577960,1747621852130,-667.47,0.00013808,2]
[361577961,1747621852140,-400.0,0.00013808,2]
[361577962,1747621852149,-400.0,0.00013808,2]
[361577963,1747621852159,-400.0,0.00013808,2]
[361577964,1747621852168,-400.0,0.00013808,2]
[361577965,1747621852177,-400.0,0.00013808,2]
[361577966,1747621852186,-451.9,0.00013808,2]
[361577967,1747621852196,-176.27160118,0.00013808,2]
[361577968,1747621852205,-930.76,0.00013808,2]
[361577969,1747621852214,-440.14,0.00013808,2]
[361577970,1747621852223,-600.69,0.00013808,2]
[361577971,1747621852232,-498.97,0.00013808,2]
[361577972,1747621852241,-736.37,0.00013808,2]
[361577973,1747621852251,-1049.02,0.00013808,2]
[361577974,1747621852260,-2241.86,0.00013808,2]
[361577975,1747621852269,-544.89,0.00013808,2]
[361577976,1747621852278,-400.0,0.00013808,2]
[361577977,1747621852288,-1766.14,0.00013808,2]
[361577978,1747621852297,-151.442785,0.00013808,2]
[361577979,1747621852306,-1192.85,0.00013808,2]
[361577980,1747621852315,-1500.27,0.00013808,2]
[361577981,1747621852325,-400.0,0.00013808,2]
[361577982,1747621852334,-182.272276,0.00013808,2]
[361577983,1747621852343,-1202.65,0.00013808,2]
[361577984,1747621852352,-728.11,0.00013808,2]
[361577985,1747621852361,-400.0,0.00013808,2]
[361577986,1747621852370,-931.14,0.00013808,2]
[361577987,1747621852380,-418.56,0.00013808,2]
[361577988,1747621852389,-151.0,0.00013808,2]
[361577989,1747621852398,-565.71,0.00013808,2]
[361577990,1747621852407,-776.76,0.00013808,2]